[Event "January 9 Late 2024"]
[Site "https://www.chess.com"]
[Date "2024.01.09"]
[Round "6"]
[White "Zarnicki, Pablo"]
[Black "Bardyk, Artem"]
[Result "1-0"]
[Board "64"]
[TimeControl "180+1"]
[WhiteFideId "100137"]
[BlackFideId "34349979"]
[WhiteElo "2550"]
[BlackElo "2755"]
[WhiteTeam "ARG"]
[BlackTeam "RUS"]
[WhiteClock "0:00:10"]
[BlackClock "0:00:00"]

1. e4 {[%clk 0:03:00]}  e5 {[%clk 0:02:59]} 2. Nc3 {[%clk 0:03:00]}  Nf6 {[%clk 0:02:58]} 3. g3 {[%clk 0:03:01]}  d5 {[%clk 0:02:58]} 4. exd5 {[%clk 0:03:00]}  c6 {[%clk 0:02:58]} 5. d4 {[%clk 0:02:53]}  exd4 {[%clk 0:02:55]} 6. Qxd4 {[%clk 0:02:53]}  cxd5 {[%clk 0:02:56]} 7. Bg2 {[%clk 0:02:41]}  Nc6 {[%clk 0:02:56]} 8. Qd1 {[%clk 0:02:40]}  d4 {[%clk 0:02:56]} 9. Nce2 {[%clk 0:02:31]}  Bb4+ {[%clk 0:02:54]} 10. Bd2 {[%clk 0:02:31]}  O-O {[%clk 0:02:54]} 11. Nf3 {[%clk 0:02:31]}  d3 {[%clk 0:02:48]} 12. cxd3 {[%clk 0:02:20]}  Qxd3 {[%clk 0:02:49]} 13. Bxb4 {[%clk 0:02:16]}  Nxb4 {[%clk 0:02:48]} 14. O-O {[%clk 0:02:13]}  Bg4 {[%clk 0:02:39]} 15. Nf4 {[%clk 0:02:05]}  Qa6 {[%clk 0:01:42]} 16. h3 {[%clk 0:01:59]}  Bd7 {[%clk 0:01:38]} 17. Qb3 {[%clk 0:01:58]}  Nc6 {[%clk 0:01:33]} 18. Rfd1 {[%clk 0:01:57]}  Rad8 {[%clk 0:01:25]} 19. Rac1 {[%clk 0:01:53]}  Rfe8 {[%clk 0:01:18]} 20. Ng5 {[%clk 0:01:41]}  Re7 {[%clk 0:01:09]} 21. Nd5 {[%clk 0:01:41]}  Nxd5 {[%clk 0:01:04]} 22. Bxd5 {[%clk 0:01:42]}  Ne5 {[%clk 0:00:45]} 23. f4 {[%clk 0:01:31]}  h6 {[%clk 0:00:25]} 24. fxe5 {[%clk 0:01:16]}  hxg5 {[%clk 0:00:25]} 25. Bxf7+ {[%clk 0:01:15]}  Rxf7 {[%clk 0:00:17]} 26. e6 {[%clk 0:01:07]}  Bxe6 {[%clk 0:00:05]} 27. Rxd8+ {[%clk 0:01:03]}  Kh7 {[%clk 0:00:05]} 28. Qd3+ {[%clk 0:00:44]}  Qxd3 {[%clk 0:00:05]} 29. Rxd3 {[%clk 0:00:45]}  Bxa2 {[%clk 0:00:05]} 30. b3 {[%clk 0:00:44]}  Rf6 {[%clk 0:00:04]} 31. Ra1 {[%clk 0:00:42]}  Ra6 {[%clk 0:00:04]} 32. b4 {[%clk 0:00:28]}  Ra4 {[%clk 0:00:03]} 33. Rd2 {[%clk 0:00:25]}  Bb3 {[%clk 0:00:03]} 34. Rxa4 {[%clk 0:00:25]}  Bxa4 {[%clk 0:00:03]} 35. Kf2 {[%clk 0:00:24]}  Kg6 {[%clk 0:00:02]} 36. g4 {[%clk 0:00:25]}  Kf6 {[%clk 0:00:02]} 37. Rd5 {[%clk 0:00:24]}  Bc6 {[%clk 0:00:02]} 38. Rf5+ {[%clk 0:00:23]}  Kg6 {[%clk 0:00:01]} 39. b5 {[%clk 0:00:22]}  Bd7 {[%clk 0:00:02]} 40. Rd5 {[%clk 0:00:22]}  Be8 {[%clk 0:00:01]} 41. Ke3 {[%clk 0:00:20]}  a6 {[%clk 0:00:02]} 42. b6 {[%clk 0:00:20]}  Kf7 {[%clk 0:00:01]} 43. Rd8 {[%clk 0:00:19]}  Ke7 {[%clk 0:00:01]} 44. Rb8 {[%clk 0:00:18]}  Bc6 {[%clk 0:00:02]} 45. Rc8 {[%clk 0:00:18]}  Kd6 {[%clk 0:00:01]} 46. Rc7 {[%clk 0:00:18]}  Kc5 {[%clk 0:00:01]} 47. Rxg7 {[%clk 0:00:18]}  a5 {[%clk 0:00:02]} 48. Rxg5+ {[%clk 0:00:19]}  Kb4 {[%clk 0:00:03]} 49. Kd2 {[%clk 0:00:18]}  a4 {[%clk 0:00:02]} 50. Rf5 {[%clk 0:00:15]}  a3 {[%clk 0:00:01]} 51. Rf4+ {[%clk 0:00:15]}  Kb3 {[%clk 0:00:02]} 52. Rf8 {[%clk 0:00:07]}  Kb2 {[%clk 0:00:01]} 53. Ra8 {[%clk 0:00:07]}  a2 {[%clk 0:00:02]} 54. Rxa2+ {[%clk 0:00:08]}  Kxa2 {[%clk 0:00:02]} 55. Ke3 {[%clk 0:00:08]}  Kb3 {[%clk 0:00:03]} 56. g5 {[%clk 0:00:09]}  Be8 {[%clk 0:00:03]} 57. h4 {[%clk 0:00:09]}  Kc4 {[%clk 0:00:03]} 58. Kf4 {[%clk 0:00:09]}  Kc5 {[%clk 0:00:03]} 59. Kf5 {[%clk 0:00:09]}  Kxb6 {[%clk 0:00:03]} 60. g6 {[%clk 0:00:10]}  Kc5 {[%clk 0:00:03]} 61. h5 {[%clk 0:00:10]}  Kd6 {[%clk 0:00:00]} 62. h6 {[%clk 0:00:10]} 1-0

[Event "January 9 Late 2024"]
[Site "https://www.chess.com"]
[Date "2024.01.09"]
[Round "6"]
[White "Chirilov, James A"]
[Black "Gasparyan, David"]
[Result "1-0"]
[Board "68"]
[TimeControl "180+1"]
[WhiteFideId "30976677"]
[BlackFideId "13311980"]
[WhiteElo "2737"]
[BlackElo "2545"]
[WhiteTeam "USA"]
[BlackTeam "USA"]
[WhiteClock "0:00:35"]
[BlackClock "0:00:00"]

1. Nf3 {[%clk 0:03:00]}  Nf6 {[%clk 0:02:58]} 2. g3 {[%clk 0:02:59]}  d6 {[%clk 0:02:58]} 3. Bg2 {[%clk 0:03:00]}  e5 {[%clk 0:02:58]} 4. d3 {[%clk 0:03:00]}  Be7 {[%clk 0:02:59]} 5. Nbd2 {[%clk 0:03:00]}  O-O {[%clk 0:02:59]} 6. O-O {[%clk 0:03:01]}  Nc6 {[%clk 0:02:58]} 7. e4 {[%clk 0:03:01]}  h6 {[%clk 0:02:55]} 8. Re1 {[%clk 0:03:02]}  Be6 {[%clk 0:02:54]} 9. c3 {[%clk 0:03:02]}  Qc8 {[%clk 0:02:48]} 10. d4 {[%clk 0:03:02]}  exd4 {[%clk 0:02:44]} 11. cxd4 {[%clk 0:03:02]}  Bh3 {[%clk 0:02:36]} 12. Bh1 {[%clk 0:03:00]}  Re8 {[%clk 0:02:31]} 13. a3 {[%clk 0:02:57]}  Bf8 {[%clk 0:02:28]} 14. b4 {[%clk 0:02:57]}  a6 {[%clk 0:02:21]} 15. Bb2 {[%clk 0:02:57]}  Ne7 {[%clk 0:02:01]} 16. Rc1 {[%clk 0:02:55]}  Ng6 {[%clk 0:01:44]} 17. Qc2 {[%clk 0:02:38]}  c6 {[%clk 0:01:39]} 18. Nc4 {[%clk 0:02:24]}  Qc7 {[%clk 0:01:29]} 19. e5 {[%clk 0:02:01]}  dxe5 {[%clk 0:01:25]} 20. dxe5 {[%clk 0:02:02]}  Nd5 {[%clk 0:01:21]} 21. Bg2 {[%clk 0:01:48]}  Bxg2 {[%clk 0:01:09]} 22. Kxg2 {[%clk 0:01:49]}  Qd7 {[%clk 0:01:00]} 23. Rcd1 {[%clk 0:01:46]}  Qg4 {[%clk 0:00:58]} 24. Ng1 {[%clk 0:01:34]}  h5 {[%clk 0:00:45]} 25. Kh1 {[%clk 0:01:23]}  h4 {[%clk 0:00:40]} 26. Qe4 {[%clk 0:01:12]}  Qh5 {[%clk 0:00:32]} 27. Qf3 {[%clk 0:01:06]}  Qg5 {[%clk 0:00:28]} 28. Nh3 {[%clk 0:01:00]}  Qd8 {[%clk 0:00:23]} 29. Qh5 {[%clk 0:01:00]}  hxg3 {[%clk 0:00:15]} 30. hxg3 {[%clk 0:00:59]}  Be7 {[%clk 0:00:15]} 31. e6 {[%clk 0:00:58]}  Bf6 {[%clk 0:00:12]} 32. exf7+ {[%clk 0:00:58]}  Kxf7 {[%clk 0:00:13]} 33. Rxe8 {[%clk 0:00:57]}  Kxe8 {[%clk 0:00:08]} 34. Qxg6+ {[%clk 0:00:57]}  Kf8 {[%clk 0:00:08]} 35. Ng5 {[%clk 0:00:37]}  Qe7 {[%clk 0:00:05]} 36. Nh7+ {[%clk 0:00:35]}  Kg8 {[%clk 0:00:00]} 37. Nxf6+ {[%clk 0:00:35]} 1-0

[Event "January 9 Late 2024"]
[Site "https://www.chess.com"]
[Date "2024.01.10"]
[Round "6"]
[White "Otero Marino, Alain"]
[Black "Arabidze, Meri"]
[Result "1-0"]
[Board "73"]
[TimeControl "180+1"]
[WhiteFideId "3524876"]
[BlackFideId "13604040"]
[WhiteElo "2523"]
[BlackElo "2725"]
[WhiteTeam "CUB"]
[BlackTeam "GEO"]
[WhiteClock "0:00:15"]
[BlackClock "0:00:01"]

1. d4 {[%clk 0:03:00]}  Nf6 {[%clk 0:02:56]} 2. e3 {[%clk 0:02:58]}  b6 {[%clk 0:02:55]} 3. Nf3 {[%clk 0:02:58]}  Bb7 {[%clk 0:02:55]} 4. Be2 {[%clk 0:02:57]}  g6 {[%clk 0:02:55]} 5. O-O {[%clk 0:02:57]}  Bg7 {[%clk 0:02:56]} 6. c4 {[%clk 0:02:57]}  O-O {[%clk 0:02:56]} 7. b3 {[%clk 0:02:57]}  e6 {[%clk 0:02:46]} 8. Bb2 {[%clk 0:02:56]}  d5 {[%clk 0:02:47]} 9. Nbd2 {[%clk 0:02:56]}  a5 {[%clk 0:02:44]} 10. Rc1 {[%clk 0:02:53]}  Na6 {[%clk 0:02:42]} 11. Ne5 {[%clk 0:02:47]}  c5 {[%clk 0:02:42]} 12. Bf3 {[%clk 0:02:42]}  Rc8 {[%clk 0:02:25]} 13. Qe2 {[%clk 0:02:38]}  Qe7 {[%clk 0:02:17]} 14. a4 {[%clk 0:02:25]}  Rfd8 {[%clk 0:02:14]} 15. Rfd1 {[%clk 0:02:24]}  Ne4 {[%clk 0:02:10]} 16. cxd5 {[%clk 0:02:18]}  exd5 {[%clk 0:02:11]} 17. Bg4 {[%clk 0:02:07]}  f5 {[%clk 0:02:08]} 18. Bf3 {[%clk 0:02:06]}  Nb4 {[%clk 0:02:03]} 19. Qf1 {[%clk 0:01:46]}  Bf6 {[%clk 0:01:26]} 20. Nxe4 {[%clk 0:01:41]}  fxe4 {[%clk 0:01:21]} 21. Be2 {[%clk 0:01:29]}  cxd4 {[%clk 0:01:12]} 22. exd4 {[%clk 0:01:27]}  Bg5 {[%clk 0:01:04]} 23. Rxc8 {[%clk 0:01:25]}  Rxc8 {[%clk 0:01:05]} 24. Bc1 {[%clk 0:01:22]}  Rc2 {[%clk 0:00:56]} 25. Be3 {[%clk 0:01:13]}  Nc6 {[%clk 0:00:26]} 26. Nxc6 {[%clk 0:01:09]}  Bxc6 {[%clk 0:00:27]} 27. Rc1 {[%clk 0:01:09]}  Rxc1 {[%clk 0:00:23]} 28. Qxc1 {[%clk 0:01:09]}  Bxe3 {[%clk 0:00:15]} 29. fxe3 {[%clk 0:01:09]}  Qd6 {[%clk 0:00:12]} 30. g3 {[%clk 0:01:01]}  Kg7 {[%clk 0:00:12]} 31. Kg2 {[%clk 0:01:01]}  Bd7 {[%clk 0:00:12]} 32. Kg1 {[%clk 0:01:01]}  Bc6 {[%clk 0:00:12]} 33. Bg4 {[%clk 0:01:00]}  Bd7 {[%clk 0:00:12]} 34. Bxd7 {[%clk 0:01:00]}  Qxd7 {[%clk 0:00:13]} 35. Qa3 {[%clk 0:01:00]}  h5 {[%clk 0:00:11]} 36. Qc1 {[%clk 0:00:54]}  h4 {[%clk 0:00:11]} 37. Qf1 {[%clk 0:00:47]}  Qg4 {[%clk 0:00:11]} 38. Qf4 {[%clk 0:00:45]}  Qd1+ {[%clk 0:00:06]} 39. Kg2 {[%clk 0:00:45]}  Qc2+ {[%clk 0:00:05]} 40. Kh3 {[%clk 0:00:45]}  hxg3 {[%clk 0:00:05]} 41. hxg3 {[%clk 0:00:44]}  Qxb3 {[%clk 0:00:06]} 42. Qe5+ {[%clk 0:00:44]}  Kf7 {[%clk 0:00:06]} 43. Qc7+ {[%clk 0:00:44]}  Ke6 {[%clk 0:00:06]} 44. Qc6+ {[%clk 0:00:44]}  Ke7 {[%clk 0:00:06]} 45. Qc7+ {[%clk 0:00:44]}  Ke6 {[%clk 0:00:07]} 46. Qc6+ {[%clk 0:00:39]}  Ke7 {[%clk 0:00:07]} 47. Qxg6 {[%clk 0:00:38]}  Qxe3 {[%clk 0:00:06]} 48. Qg7+ {[%clk 0:00:38]}  Kd8 {[%clk 0:00:02]} 49. Qf6+ {[%clk 0:00:38]}  Kc7 {[%clk 0:00:02]} 50. Qe5+ {[%clk 0:00:38]}  Kc8 {[%clk 0:00:03]} 51. Qxd5 {[%clk 0:00:37]}  Qd3 {[%clk 0:00:03]} 52. Qe6+ {[%clk 0:00:37]}  Kb7 {[%clk 0:00:03]} 53. d5 {[%clk 0:00:37]}  e3 {[%clk 0:00:03]} 54. d6 {[%clk 0:00:37]}  e2 {[%clk 0:00:04]} 55. Qe7+ {[%clk 0:00:19]}  Kc6 {[%clk 0:00:03]} 56. Qe8+ {[%clk 0:00:19]}  Kb7 {[%clk 0:00:03]} 57. Qe7+ {[%clk 0:00:18]}  Kc6 {[%clk 0:00:03]} 58. Qe8+ {[%clk 0:00:18]}  Kb7 {[%clk 0:00:03]} 59. d7 {[%clk 0:00:19]}  Qf5+ {[%clk 0:00:03]} 60. Kh4 {[%clk 0:00:18]}  Qf6+ {[%clk 0:00:03]} 61. Kh3 {[%clk 0:00:17]}  Qf5+ {[%clk 0:00:04]} 62. Kh4 {[%clk 0:00:18]}  Qf6+ {[%clk 0:00:04]} 63. Kg4 {[%clk 0:00:18]}  Qd4+ {[%clk 0:00:04]} 64. Kh5 {[%clk 0:00:18]}  Qd5+ {[%clk 0:00:02]} 65. Kh4 {[%clk 0:00:18]}  Qd4+ {[%clk 0:00:02]} 66. Kh3 {[%clk 0:00:18]}  Qf2 {[%clk 0:00:01]} 67. d8=Q {[%clk 0:00:17]}  Qf1+ {[%clk 0:00:01]} 68. Kh4 {[%clk 0:00:17]}  Qh1+ {[%clk 0:00:01]} 69. Kg5 {[%clk 0:00:17]}  e1=Q {[%clk 0:00:01]} 70. Qa8+ {[%clk 0:00:15]}  Kc7 {[%clk 0:00:01]} 71. Qab8# {[%clk 0:00:15]} 1-0

[Event "January 9 Late 2024"]
[Site "https://www.chess.com"]
[Date "2024.01.09"]
[Round "6"]
[White "Novikova, Galina"]
[Black "Rozman, Levy"]
[Result "0-1"]
[Board "75"]
[TimeControl "180+1"]
[WhiteFideId "4157095"]
[BlackFideId "2039877"]
[WhiteElo "2517"]
[BlackElo "2711"]
[WhiteTeam "RUS"]
[BlackTeam "USA"]
[WhiteClock "0:00:00"]
[BlackClock "0:00:28"]

1. e4 {[%clk 0:03:00]}  d5 {[%clk 0:02:59]} 2. exd5 {[%clk 0:03:01]}  Qxd5 {[%clk 0:03:00]} 3. Nf3 {[%clk 0:03:00]}  Nf6 {[%clk 0:03:00]} 4. d4 {[%clk 0:03:00]}  Bf5 {[%clk 0:02:56]} 5. Be2 {[%clk 0:02:51]}  e6 {[%clk 0:02:55]} 6. c4 {[%clk 0:02:51]}  Bb4+ {[%clk 0:02:54]} 7. Nc3 {[%clk 0:02:51]}  Bxc3+ {[%clk 0:02:49]} 8. bxc3 {[%clk 0:02:51]}  Qa5 {[%clk 0:02:50]} 9. O-O {[%clk 0:02:42]}  O-O {[%clk 0:02:45]} 10. Qb3 {[%clk 0:02:35]}  Nbd7 {[%clk 0:02:23]} 11. Bf4 {[%clk 0:02:22]}  Ne4 {[%clk 0:02:11]} 12. Rac1 {[%clk 0:02:12]}  Ndf6 {[%clk 0:02:04]} 13. Rfd1 {[%clk 0:01:54]}  Qb6 {[%clk 0:01:55]} 14. h3 {[%clk 0:01:49]}  h6 {[%clk 0:01:53]} 15. c5 {[%clk 0:01:42]}  Qxb3 {[%clk 0:01:53]} 16. axb3 {[%clk 0:01:43]}  Nd5 {[%clk 0:01:53]} 17. Bd2 {[%clk 0:01:31]}  Nxd2 {[%clk 0:01:53]} 18. Rxd2 {[%clk 0:01:32]}  b6 {[%clk 0:01:53]} 19. c4 {[%clk 0:01:05]}  Nb4 {[%clk 0:01:47]} 20. cxb6 {[%clk 0:01:01]}  axb6 {[%clk 0:01:46]} 21. Ne5 {[%clk 0:00:59]}  Ra3 {[%clk 0:01:42]} 22. Rb2 {[%clk 0:00:55]}  Rd8 {[%clk 0:01:35]} 23. Rd1 {[%clk 0:00:48]}  c5 {[%clk 0:01:29]} 24. dxc5 {[%clk 0:00:44]}  Rxd1+ {[%clk 0:01:28]} 25. Bxd1 {[%clk 0:00:45]}  Ra1 {[%clk 0:01:11]} 26. cxb6 {[%clk 0:00:44]}  Rxd1+ {[%clk 0:01:11]} 27. Kh2 {[%clk 0:00:45]}  Be4 {[%clk 0:01:10]} 28. f3 {[%clk 0:00:41]}  Bb7 {[%clk 0:01:08]} 29. Kg3 {[%clk 0:00:19]}  f6 {[%clk 0:01:05]} 30. Ng4 {[%clk 0:00:20]}  Rd6 {[%clk 0:01:00]} 31. Ne3 {[%clk 0:00:07]}  Rxb6 {[%clk 0:00:58]} 32. Rd2 {[%clk 0:00:08]}  Kf7 {[%clk 0:00:50]} 33. Rd7+ {[%clk 0:00:08]}  Kg6 {[%clk 0:00:48]} 34. h4 {[%clk 0:00:05]}  h5 {[%clk 0:00:48]} 35. Kf2 {[%clk 0:00:02]}  Bc6 {[%clk 0:00:41]} 36. Rc7 {[%clk 0:00:02]}  Na6 {[%clk 0:00:38]} 37. Rc8 {[%clk 0:00:02]}  Bb7 {[%clk 0:00:37]} 38. Rd8 {[%clk 0:00:02]}  Rxb3 {[%clk 0:00:37]} 39. g4 {[%clk 0:00:02]}  Nc5 {[%clk 0:00:33]} 40. Ng2 {[%clk 0:00:01]}  Rxf3+ {[%clk 0:00:32]} 41. Ke2 {[%clk 0:00:01]}  hxg4 {[%clk 0:00:31]} 42. Ne1 {[%clk 0:00:00]}  Rf4 {[%clk 0:00:28]} 0-1

[Event "January 9 Late 2024"]
[Site "https://www.chess.com"]
[Date "2024.01.09"]
[Round "6"]
[White "Martinez Ramirez, Lennis"]
[Black "Novik, Maxim"]
[Result "0-1"]
[Board "77"]
[TimeControl "180+1"]
[WhiteFideId "3509079"]
[BlackFideId "4102924"]
[WhiteElo "2697"]
[BlackElo "2509"]
[WhiteTeam "CUB"]
[BlackTeam "LTU"]
[WhiteClock "0:00:49"]
[BlackClock "0:00:33"]

1. d4 {[%clk 0:03:00]}  Nf6 {[%clk 0:02:59]} 2. Nf3 {[%clk 0:02:52]}  g6 {[%clk 0:03:00]} 3. c4 {[%clk 0:02:52]}  Bg7 {[%clk 0:03:00]} 4. Nc3 {[%clk 0:02:52]}  d5 {[%clk 0:03:00]} 5. Qa4+ {[%clk 0:02:51]}  Bd7 {[%clk 0:02:58]} 6. Qb3 {[%clk 0:02:51]}  dxc4 {[%clk 0:02:56]} 7. Qxc4 {[%clk 0:02:50]}  O-O {[%clk 0:02:52]} 8. e4 {[%clk 0:02:49]}  Be6 {[%clk 0:02:45]} 9. d5 {[%clk 0:02:36]}  Bg4 {[%clk 0:02:43]} 10. Bf4 {[%clk 0:02:28]}  Bxf3 {[%clk 0:02:40]} 11. gxf3 {[%clk 0:02:29]}  c6 {[%clk 0:02:40]} 12. O-O-O {[%clk 0:02:20]}  cxd5 {[%clk 0:02:33]} 13. Nxd5 {[%clk 0:02:20]}  Nxd5 {[%clk 0:02:32]} 14. Qxd5 {[%clk 0:02:20]}  Qb6 {[%clk 0:02:29]} 15. Be5 {[%clk 0:02:19]}  Nc6 {[%clk 0:02:24]} 16. Bxg7 {[%clk 0:02:19]}  Kxg7 {[%clk 0:02:24]} 17. Bc4 {[%clk 0:02:09]}  Qxf2 {[%clk 0:01:57]} 18. Rd2 {[%clk 0:02:04]}  Qe3 {[%clk 0:01:49]} 19. Qd3 {[%clk 0:02:00]}  Qxd3 {[%clk 0:01:47]} 20. Bxd3 {[%clk 0:02:00]}  Rad8 {[%clk 0:01:42]} 21. Rhd1 {[%clk 0:01:58]}  e5 {[%clk 0:01:31]} 22. Bf1 {[%clk 0:01:45]}  Rxd2 {[%clk 0:01:29]} 23. Rxd2 {[%clk 0:01:45]}  Rd8 {[%clk 0:01:30]} 24. Rc2 {[%clk 0:01:42]}  Kf6 {[%clk 0:01:25]} 25. Bc4 {[%clk 0:01:38]}  Nd4 {[%clk 0:01:17]} 26. Rc3 {[%clk 0:01:36]}  Rc8 {[%clk 0:01:15]} 27. a4 {[%clk 0:01:33]}  Kg5 {[%clk 0:01:12]} 28. a5 {[%clk 0:01:16]}  Kf4 {[%clk 0:01:09]} 29. Bxf7 {[%clk 0:01:14]}  Ne2+ {[%clk 0:01:09]} 30. Kd2 {[%clk 0:01:05]}  Nxc3 {[%clk 0:01:08]} 31. bxc3 {[%clk 0:01:06]}  Rc5 {[%clk 0:01:06]} 32. Bd5 {[%clk 0:01:07]}  Rxa5 {[%clk 0:01:01]} 33. Bxb7 {[%clk 0:01:08]}  Kxf3 {[%clk 0:01:00]} 34. Kd3 {[%clk 0:01:07]}  Rc5 {[%clk 0:00:59]} 35. c4 {[%clk 0:01:07]}  g5 {[%clk 0:00:57]} 36. Ba6 {[%clk 0:01:06]}  g4 {[%clk 0:00:57]} 37. Kc3 {[%clk 0:01:06]}  h5 {[%clk 0:00:39]} 38. Kb4 {[%clk 0:01:06]}  Rc7 {[%clk 0:00:39]} 39. c5 {[%clk 0:01:05]}  h4 {[%clk 0:00:39]} 40. Kc4 {[%clk 0:00:50]}  g3 {[%clk 0:00:39]} 41. hxg3 {[%clk 0:00:51]}  hxg3 {[%clk 0:00:39]} 42. Kd5 {[%clk 0:00:50]}  g2 {[%clk 0:00:38]} 43. Kd6 {[%clk 0:00:51]}  Rg7 {[%clk 0:00:38]} 44. c6 {[%clk 0:00:46]}  g1=Q {[%clk 0:00:36]} 45. Bc4 {[%clk 0:00:46]}  Qd4+ {[%clk 0:00:34]} 46. Bd5 {[%clk 0:00:47]}  Qb4+ {[%clk 0:00:33]} 47. Ke6 {[%clk 0:00:48]}  Qe7+ {[%clk 0:00:33]} 48. Kf5 {[%clk 0:00:49]}  Rg5# {[%clk 0:00:33]} 0-1

[Event "January 9 Late 2024"]
[Site "https://www.chess.com"]
[Date "2024.01.09"]
[Round "6"]
[White "Principe, Gerson"]
[Black "Martinez Pla, Xavier"]
[Result "0-1"]
[Board "82"]
[TimeControl "180+1"]
[WhiteFideId "3804550"]
[BlackFideId "32074271"]
[WhiteElo "2648"]
[BlackElo "2501"]
[WhiteTeam "PER"]
[BlackTeam "ESP"]
[WhiteClock "0:00:00"]
[BlackClock "0:00:07"]

1. d4 {[%clk 0:02:59]}  Nf6 {[%clk 0:02:59]} 2. Nf3 {[%clk 0:02:58]}  e6 {[%clk 0:03:00]} 3. c4 {[%clk 0:02:58]}  b6 {[%clk 0:02:59]} 4. g3 {[%clk 0:02:58]}  Bb7 {[%clk 0:03:00]} 5. Bg2 {[%clk 0:02:58]}  Be7 {[%clk 0:03:00]} 6. O-O {[%clk 0:02:58]}  O-O {[%clk 0:03:01]} 7. Nc3 {[%clk 0:02:53]}  Ne4 {[%clk 0:03:01]} 8. Bd2 {[%clk 0:02:53]}  Bf6 {[%clk 0:03:00]} 9. Rc1 {[%clk 0:02:51]}  c5 {[%clk 0:02:53]} 10. dxc5 {[%clk 0:02:32]}  bxc5 {[%clk 0:02:51]} 11. Qc2 {[%clk 0:02:31]}  Nxd2 {[%clk 0:02:43]} 12. Qxd2 {[%clk 0:02:21]}  Qb6 {[%clk 0:02:26]} 13. Rfd1 {[%clk 0:02:17]}  Rd8 {[%clk 0:02:24]} 14. Ne1 {[%clk 0:02:11]}  Bxg2 {[%clk 0:02:23]} 15. Nxg2 {[%clk 0:02:12]}  Nc6 {[%clk 0:02:21]} 16. b3 {[%clk 0:02:08]}  d6 {[%clk 0:02:15]} 17. Ne1 {[%clk 0:01:37]}  Rac8 {[%clk 0:02:00]} 18. Nf3 {[%clk 0:01:27]}  h6 {[%clk 0:01:58]} 19. e3 {[%clk 0:01:27]}  a6 {[%clk 0:01:56]} 20. Qe2 {[%clk 0:01:23]}  Qb7 {[%clk 0:01:54]} 21. Rd2 {[%clk 0:01:17]}  Rd7 {[%clk 0:01:36]} 22. Ne4 {[%clk 0:01:11]}  Be7 {[%clk 0:01:35]} 23. Rcd1 {[%clk 0:01:11]}  Rcd8 {[%clk 0:01:29]} 24. h3 {[%clk 0:00:59]}  Nb4 {[%clk 0:01:19]} 25. Nc3 {[%clk 0:00:57]}  Nc6 {[%clk 0:01:18]} 26. Na4 {[%clk 0:00:46]}  Qc7 {[%clk 0:01:16]} 27. Qd3 {[%clk 0:00:40]}  Nb4 {[%clk 0:01:15]} 28. Qe2 {[%clk 0:00:39]}  Qb7 {[%clk 0:01:15]} 29. Ne1 {[%clk 0:00:38]}  Rc8 {[%clk 0:01:08]} 30. Qf3 {[%clk 0:00:34]}  Qb8 {[%clk 0:01:03]} 31. Qe2 {[%clk 0:00:34]}  Rdd8 {[%clk 0:01:03]} 32. Nf3 {[%clk 0:00:34]}  Nc6 {[%clk 0:01:03]} 33. Kh2 {[%clk 0:00:33]}  Qb7 {[%clk 0:01:01]} 34. Ne1 {[%clk 0:00:31]}  Ne5 {[%clk 0:01:00]} 35. f4 {[%clk 0:00:31]}  Nc6 {[%clk 0:00:58]} 36. Nf3 {[%clk 0:00:31]}  Qc7 {[%clk 0:00:55]} 37. Kg2 {[%clk 0:00:31]}  Bf8 {[%clk 0:00:54]} 38. Qd3 {[%clk 0:00:32]}  Be7 {[%clk 0:00:53]} 39. Qe4 {[%clk 0:00:29]}  Nb4 {[%clk 0:00:49]} 40. g4 {[%clk 0:00:29]}  d5 {[%clk 0:00:46]} 41. cxd5 {[%clk 0:00:19]}  exd5 {[%clk 0:00:46]} 42. Qb1 {[%clk 0:00:17]}  Bf6 {[%clk 0:00:44]} 43. Rc1 {[%clk 0:00:14]}  Qa5 {[%clk 0:00:40]} 44. Kg3 {[%clk 0:00:10]}  c4 {[%clk 0:00:37]} 45. Nd4 {[%clk 0:00:07]}  Nd3 {[%clk 0:00:26]} 46. Rcd1 {[%clk 0:00:06]}  Nc5 {[%clk 0:00:25]} 47. Nxc5 {[%clk 0:00:06]}  Qxc5 {[%clk 0:00:24]} 48. bxc4 {[%clk 0:00:06]}  dxc4 {[%clk 0:00:24]} 49. Nf5 {[%clk 0:00:05]}  Rxd2 {[%clk 0:00:23]} 50. Rxd2 {[%clk 0:00:06]}  c3 {[%clk 0:00:22]} 51. Rc2 {[%clk 0:00:06]}  Rd8 {[%clk 0:00:22]} 52. Qe1 {[%clk 0:00:03]}  g6 {[%clk 0:00:16]} 53. Nd4 {[%clk 0:00:03]}  Bxd4 {[%clk 0:00:16]} 54. exd4 {[%clk 0:00:03]}  Qxd4 {[%clk 0:00:16]} 55. Qxc3 {[%clk 0:00:04]}  Qg1+ {[%clk 0:00:14]} 56. Rg2 {[%clk 0:00:04]}  Qf1 {[%clk 0:00:11]} 57. Kh2 {[%clk 0:00:02]}  Rd3 {[%clk 0:00:11]} 58. Qc8+ {[%clk 0:00:02]}  Kg7 {[%clk 0:00:11]} 59. Qc7 {[%clk 0:00:01]}  Re3 {[%clk 0:00:09]} 60. Qd6 {[%clk 0:00:01]}  Qf3 {[%clk 0:00:07]} 61. Qd4+ {[%clk 0:00:00]}  Kh7 {[%clk 0:00:07]} 0-1

[Event "January 9 Late 2024"]
[Site "https://www.chess.com"]
[Date "2024.01.09"]
[Round "6"]
[White "Sun, Rick"]
[Black "Peczely, Sebastian Zsombor"]
[Result "1-0"]
[Board "83"]
[TimeControl "180+1"]
[WhiteFideId "30909481"]
[BlackFideId "750964"]
[WhiteElo "2646"]
[BlackElo "2495"]
[WhiteTeam "USA"]
[BlackTeam "HUN"]
[WhiteClock "0:00:09"]
[BlackClock "0:00:03"]

1. d4 {[%clk 0:03:00]}  Nf6 {[%clk 0:02:56]} 2. Nc3 {[%clk 0:03:01]}  d5 {[%clk 0:02:55]} 3. Bf4 {[%clk 0:03:01]}  c5 {[%clk 0:02:56]} 4. e3 {[%clk 0:03:02]}  cxd4 {[%clk 0:02:56]} 5. exd4 {[%clk 0:03:03]}  a6 {[%clk 0:02:56]} 6. Nf3 {[%clk 0:03:03]}  Bg4 {[%clk 0:02:54]} 7. h3 {[%clk 0:03:03]}  Bh5 {[%clk 0:02:52]} 8. g4 {[%clk 0:03:03]}  Bg6 {[%clk 0:02:52]} 9. Bd3 {[%clk 0:03:03]}  Nc6 {[%clk 0:02:51]} 10. Qe2 {[%clk 0:02:59]}  e6 {[%clk 0:02:37]} 11. O-O-O {[%clk 0:02:56]}  Bb4 {[%clk 0:02:31]} 12. Bd2 {[%clk 0:02:41]}  Qb6 {[%clk 0:01:46]} 13. g5 {[%clk 0:02:09]}  Bxc3 {[%clk 0:01:45]} 14. Bxc3 {[%clk 0:02:05]}  Ne4 {[%clk 0:01:46]} 15. Bxe4 {[%clk 0:02:05]}  dxe4 {[%clk 0:01:32]} 16. Nh4 {[%clk 0:01:57]}  Qb5 {[%clk 0:01:29]} 17. Qg4 {[%clk 0:01:48]}  Bf5 {[%clk 0:01:22]} 18. Qf4 {[%clk 0:01:34]}  Qd5 {[%clk 0:01:18]} 19. Rhe1 {[%clk 0:01:25]}  O-O {[%clk 0:01:04]} 20. Kb1 {[%clk 0:01:17]}  b5 {[%clk 0:01:03]} 21. b3 {[%clk 0:01:07]}  b4 {[%clk 0:01:02]} 22. Bb2 {[%clk 0:01:07]}  a5 {[%clk 0:01:00]} 23. Nxf5 {[%clk 0:00:56]}  exf5 {[%clk 0:00:59]} 24. f3 {[%clk 0:00:55]}  Rfe8 {[%clk 0:00:48]} 25. Re3 {[%clk 0:00:52]}  a4 {[%clk 0:00:34]} 26. Rde1 {[%clk 0:00:41]}  a3 {[%clk 0:00:35]} 27. Ba1 {[%clk 0:00:40]}  Nxd4 {[%clk 0:00:35]} 28. fxe4 {[%clk 0:00:27]}  Qc5 {[%clk 0:00:19]} 29. Qf2 {[%clk 0:00:19]}  Nb5 {[%clk 0:00:16]} 30. exf5 {[%clk 0:00:15]}  Rxe3 {[%clk 0:00:14]} 31. Qxe3 {[%clk 0:00:15]}  Qc6 {[%clk 0:00:13]} 32. Qe5 {[%clk 0:00:13]}  Nc3+ {[%clk 0:00:08]} 33. Bxc3 {[%clk 0:00:13]}  bxc3 {[%clk 0:00:08]} 34. f6 {[%clk 0:00:14]}  Rd8 {[%clk 0:00:07]} 35. Qe7 {[%clk 0:00:09]}  Qd6 {[%clk 0:00:03]} 36. Qxd6 {[%clk 0:00:09]}  Rxd6 {[%clk 0:00:03]} 37. Re8# {[%clk 0:00:09]} 1-0